bitfinex/quotes_BTCUSD_20240727
["timestamp","ask_amount","ask_price","bid_price","bid_amount"]
[1722084351586,0.0623,68543.0,68540.0,0.15919439]
[1722084351997,0.00147977,68542.0,68540.0,0.15419439]
[1722084352216,0.0623,68543.0,68540.0,0.15419439]
[1722084352421,0.0623,68543.0,68541.0,0.145897]
[1722084352707,0.00153212,68542.0,68541.0,0.520294]
[1722084353146,0.00822,68548.0,68543.0,0.291783]
[1722084353297,0.00822,68548.0,68540.0,0.09789439]
[1722084353298,0.00822,68548.0,68547.0,0.59538479]
[1722084354724,0.03111753,68548.0,68547.0,0.59638479]
[1722084354897,0.00822,68548.0,68547.0,0.59638479]
[1722084355162,0.00822,68548.0,68547.0,0.66148479]
[1722084355366,0.00822,68548.0,68547.0,1.58907479]
[1722084355798,0.00822,68548.0,68547.0,1.71029249]
[1722084355999,0.00822,68548.0,68547.0,1.71229249]
[1722084356370,0.00822,68548.0,68547.0,1.71228264]
[1722084356672,0.00822,68548.0,68547.0,1.81228264]
[1722084356883,0.00822,68548.0,68547.0,1.81128264]
[1722084357276,0.00822,68548.0,68547.0,1.82528264]
[1722084357503,0.00822,68548.0,68547.0,1.81228264]
[1722084357706,0.03111453,68548.0,68547.0,1.81228264]
[1722084357851,0.03111453,68548.0,68547.0,1.82628264]
[1722084358093,0.03111453,68548.0,68547.0,1.81128264]
[1722084358302,0.03111453,68548.0,68547.0,2.54508221]
[1722084358667,0.00823,68560.0,68556.0,0.614578]
[1722084358859,0.00823,68560.0,68556.0,1.50296411]
[1722084359155,0.00823,68560.0,68556.0,2.08642749]
[1722084359357,0.00823,68560.0,68556.0,2.18642455]
[1722084359560,0.00823,68560.0,68556.0,2.06523579]
[1722084359701,0.00823,68560.0,68556.0,2.18642541]
[1722084360710,0.00823,68560.0,68556.0,2.33668498]
[1722084360957,0.00823,68560.0,68556.0,2.35068498]
[1722084361476,0.00823,68560.0,68556.0,2.36468498]
[1722084362095,0.00823,68560.0,68556.0,2.35068498]
[1722084362505,0.00823,68560.0,68556.0,2.36468498]
[1722084362842,0.00823,68560.0,68556.0,2.24349536]
[1722084363057,0.00823,68560.0,68556.0,2.65641135]
[1722084364316,0.00823,68560.0,68556.0,2.64241135]
[1722084364474,0.00823,68560.0,68556.0,2.67304767]
[1722084364675,0.00823,68560.0,68556.0,2.64241135]
[1722084365199,0.00823,68560.0,68556.0,2.53522736]
[1722084366500,0.00823,68560.0,68556.0,2.54417282]
[1722084368561,0.00823,68560.0,68556.0,2.66535309]
[1722084369424,0.00823,68560.0,68556.0,2.54417282]
[1722084369626,0.00823,68560.0,68556.0,2.66535309]
[1722084370183,0.00823,68560.0,68556.0,2.54417282]
[1722084370610,0.03110899,68557.0,68556.0,2.54417282]
[1722084371187,0.00822,68557.0,68556.0,2.54417282]
[1722084371390,0.00822,68557.0,68556.0,2.66535409]
[1722084371585,0.00822,68557.0,68556.0,2.65535409]
[1722084373040,0.00823,68560.0,68558.0,2.049079]
[1722084373248,0.002,68569.0,68558.0,2.049079]
[1722084373249,0.002,68569.0,68563.0,0.444582]
[1722084373451,0.00208154,68566.0,68565.0,0.965715]
[1722084373649,0.00140152,68566.0,68565.0,2.11405657]
[1722084373962,0.002,68569.0,68568.0,1.173763]
[1722084374114,0.002,68579.0,68577.0,1.255227]
[1722084374313,0.002,68579.0,68577.0,1.861511]
[1722084374514,0.02323388,68578.0,68577.0,1.90113489]
[1722084374712,0.02323388,68578.0,68577.0,1.90614732]
[1722084374918,0.02323388,68578.0,68577.0,1.861511]
[1722084375146,0.02323388,68578.0,68577.0,2.27629446]
[1722084375374,0.02323388,68578.0,68577.0,2.32093078]
[1722084375655,0.0003502,68578.0,68577.0,2.32293078]
[1722084375859,0.0003502,68578.0,68577.0,2.33693078]
[1722084377160,0.0003502,68578.0,68577.0,1.75052857]
[1722084377406,0.0003502,68578.0,68577.0,1.99865246]
[1722084377580,0.0003502,68578.0,68577.0,2.34893078]
[1722084377991,0.0003502,68578.0,68577.0,2.357762]
[1722084378932,0.02323306,68578.0,68577.0,2.357762]
[1722084379508,0.02323306,68578.0,68577.0,2.47891702]
[1722084379725,0.02323306,68578.0,68577.0,2.48091412]
[1722084379956,0.01149306,68578.0,68577.0,2.48451112]
[1722084380074,0.002,68579.0,68578.0,1.615289]
[1722084380270,0.002,68579.0,68578.0,2.2391579]
[1722084381005,0.002,68579.0,68578.0,1.90288358]
[1722084381237,0.002,68579.0,68578.0,1.90088358]
[1722084381477,0.002,68579.0,68578.0,1.92888358]
[1722084381907,0.002,68579.0,68578.0,1.93088358]
[1722084382079,0.002,68579.0,68578.0,1.92888358]
[1722084382285,0.002,68579.0,68578.0,1.88566269]
[1722084382451,0.002,68579.0,68578.0,1.76451057]
[1722084382649,0.002,68579.0,68578.0,1.88566444]
[1722084383543,0.002,68579.0,68578.0,2.09416444]
[1722084383891,0.0248826,68579.0,68578.0,2.09416444]
[1722084384276,0.05449479,68594.0,68593.0,0.738215]
[1722084384473,0.05449479,68594.0,68593.0,0.761215]
[1722084385422,0.05449479,68594.0,68593.0,0.751935]
[1722084385626,0.05449479,68594.0,68593.0,0.809215]
[1722084385802,0.10089479,68594.0,68593.0,0.196787]
[1722084386038,0.10089479,68594.0,68593.0,0.488361]
[1722084386519,0.10089479,68594.0,68593.0,0.226067]
[1722084387329,0.82981979,68594.0,68593.0,0.028]
[1722084388211,0.82981979,68594.0,68593.0,0.014]
[1722084388520,0.1458,68587.0,68585.0,0.02928]
[1722084388721,0.0627,68586.0,68585.0,0.02928]
[1722084388943,0.0627,68586.0,68581.0,0.77529681]
[1722084388944,0.0627,68586.0,68584.0,0.175086]
[1722084389152,0.0627,68586.0,68585.0,0.05228]
[1722084389904,0.208502,68586.0,68585.0,0.02928]
[1722084390162,0.145804,68585.0,68582.0,0.02928]
[1722084390387,0.145804,68585.0,68584.0,0.02928]
[1722084390722,0.208502,68586.0,68584.0,0.02928]
[1722084390925,0.0627,68586.0,68584.0,0.175085]
[1722084391128,0.0627,68586.0,68585.0,0.04328]
[1722084391516,0.0627,68586.0,68585.0,0.02928]
[1722084391809,0.0627,68586.0,68585.0,0.145804]
[1722084392040,0.0627,68586.0,68584.0,0.014]
[1722084392497,0.0627,68586.0,68585.0,0.014]
[1722084393168,0.208502,68586.0,68585.0,0.014]
[1722084393395,0.0627,68586.0,68585.0,0.014]
[1722084394049,0.08558452,68586.0,68585.0,0.014]
[1722084394247,0.23138652,68586.0,68582.0,0.19809]
[1722084394457,0.23138652,68586.0,68585.0,0.014]
[1722084394595,0.08558452,68586.0,68585.0,0.014]
[1722084395435,0.08558452,68586.0,68585.0,0.028]
[1722084395637,0.0627,68586.0,68585.0,0.014]
[1722084395809,0.0627,68586.0,68582.0,0.19809]
[1722084396055,0.208502,68586.0,68585.0,0.009]
[1722084397342,0.208502,68586.0,68582.0,0.06028]
[1722084397556,0.145805,68585.0,68582.0,0.06028]
[1722084397776,0.145805,68585.0,68582.0,0.06228]
[1722084398011,0.145805,68585.0,68582.0,0.05228]
[1722084398247,0.291634,68579.0,68578.0,0.02928]
[1722084398471,0.500151,68579.0,68578.0,0.02928]
[1722084398917,0.208517,68579.0,68578.0,0.02928]
[1722084399181,0.23140407,68579.0,68574.0,0.10435979]
[1722084399411,0.23140407,68579.0,68575.0,0.168825]
[1722084399636,0.08558707,68579.0,68575.0,0.168825]
[1722084399875,0.02288707,68579.0,68576.0,0.02923]
[1722084400116,0.02288707,68579.0,68578.0,0.0764]
[1722084400343,0.0627,68585.0,68578.0,0.251449]
[1722084400344,0.145807,68584.0,68578.0,0.251449]
[1722084400566,0.145809,68583.0,68581.0,0.07512979]
[1722084400788,0.0627,68585.0,68581.0,0.07512979]
[1722084400789,0.14581,68582.0,68581.0,0.07512979]
[1722084401060,0.145809,68583.0,68581.0,0.07512979]
[1722084401503,0.0627,68585.0,68581.0,0.07512979]
[1722084401504,0.14581,68582.0,68581.0,0.07512979]
[1722084401736,0.145809,68583.0,68581.0,0.07512979]
[1722084401957,0.291617,68584.0,68581.0,0.07512979]
[1722084401958,0.291617,68584.0,68581.0,0.08512979]
[1722084402176,0.208504,68585.0,68581.0,0.09412979]
[1722084402399,0.145806,68584.0,68581.0,0.09412979]
[1722084402616,0.208505,68585.0,68581.0,0.09412979]
[1722084403075,0.208505,68585.0,68581.0,0.08412979]
[1722084403316,0.23139091,68585.0,68581.0,0.22994179]
[1722084403588,0.145806,68584.0,68581.0,0.07512979]
[1722084403807,0.145806,68584.0,68581.0,0.008]
[1722084404038,0.08558591,68585.0,68581.0,0.153812]
[1722084404271,0.08558591,68585.0,68580.0,0.291629]
[1722084404488,0.23139091,68585.0,68580.0,0.291629]
[1722084404732,0.08558591,68585.0,68582.0,0.14581]
[1722084404973,0.08558591,68585.0,68583.0,0.145807]
[1722084405214,0.08058591,68585.0,68583.0,0.145807]
[1722084405909,0.08058591,68585.0,68582.0,0.14581]
[1722084406180,0.08058591,68585.0,68583.0,0.145807]
[1722084406408,0.08058591,68585.0,68583.0,0.152807]
[1722084407149,0.08058591,68585.0,68583.0,0.158807]
[1722084407606,0.08058591,68585.0,68583.0,0.151808]
[1722084408216,0.0577,68585.0,68583.0,0.151808]
[1722084408661,0.2522,68587.0,68583.0,0.159732]
[1722084408881,0.1064,68587.0,68584.0,0.145806]
[1722084409237,0.2522,68587.0,68583.0,0.159732]
[1722084409443,0.1064,68587.0,68583.0,0.006924]
[1722084409644,0.2522,68587.0,68583.0,0.152732]
[1722084409845,0.1064,68587.0,68583.0,0.006924]
[1722084410051,0.1064,68587.0,68585.0,0.145802]
[1722084410330,0.1064,68587.0,68585.0,0.145804]
[1722084410531,0.1064,68587.0,68584.0,0.145806]
[1722084410730,0.06,68587.0,68584.0,0.145806]
[1722084411156,0.08288541,68587.0,68584.0,0.145806]
[1722084411379,0.08288541,68587.0,68585.0,0.005]
[1722084411715,0.08288541,68587.0,68585.0,0.003]
[1722084412158,0.08288541,68587.0,68584.0,0.150806]
[1722084412368,0.08288541,68587.0,68584.0,0.003]
[1722084412579,0.08288541,68587.0,68584.0,0.148805]
[1722084412782,0.08288541,68587.0,68585.0,0.005]
[1722084413515,0.22868541,68587.0,68585.0,0.005]
[1722084413931,0.08288541,68587.0,68585.0,0.005]
[1722084414136,0.02288541,68587.0,68586.0,0.437406]
[1722084414487,0.02288541,68587.0,68586.0,0.514506]
[1722084414624,0.02288541,68587.0,68586.0,0.80611]
[1722084415039,0.02288541,68587.0,68586.0,0.82911]
[1722084415483,0.00084,68589.0,68588.0,0.437394]
[1722084415950,0.02372435,68589.0,68588.0,0.437394]
[1722084416397,0.00084,68589.0,68588.0,0.437394]
[1722084417187,0.00084,68589.0,68588.0,0.145798]
[1722084417673,0.00084,68589.0,68588.0,0.437394]
[1722084417859,0.00084,68589.0,68588.0,0.443394]
[1722084418367,0.00084,68589.0,68588.0,0.447394]
[1722084418802,0.00084,68589.0,68588.0,0.155798]
[1722084419227,0.02372439,68589.0,68588.0,0.155798]
[1722084419613,0.00084,68589.0,68588.0,0.155798]
[1722084421340,0.00084,68589.0,68588.0,0.447394]
[1722084421916,0.00084,68589.0,68588.0,0.73899]
[1722084422111,0.00084,68589.0,68588.0,0.90939]
[1722084423038,0.02372397,68589.0,68588.0,0.90939]
[1722084423239,0.00084,68589.0,68588.0,0.90939]
[1722084423477,0.00084,68589.0,68588.0,1.200986]
[1722084423672,0.00084,68589.0,68588.0,1.283086]
[1722084424493,0.00084,68589.0,68588.0,1.574682]
[1722084424636,0.00084,68589.0,68588.0,1.603912]
[1722084426148,0.00084,68589.0,68588.0,1.597912]
[1722084426393,0.00084,68589.0,68588.0,1.611912]
[1722084426596,0.02372119,68589.0,68588.0,1.607912]
[1722084426797,0.02372119,68589.0,68588.0,1.615912]
[1722084427205,0.02372119,68589.0,68588.0,1.607912]
[1722084427648,0.02372119,68589.0,68588.0,1.593912]
[1722084427780,0.00084,68589.0,68588.0,1.593912]
[1722084427983,0.00084,68589.0,68588.0,1.524512]
[1722084428177,0.00084,68589.0,68588.0,1.621912]
[1722084429510,0.00084,68589.0,68588.0,1.538512]
[1722084429686,0.00084,68589.0,68588.0,1.621912]
[1722084430871,0.00084,68589.0,68588.0,1.330316]
[1722084431071,0.02372102,68589.0,68588.0,1.330316]
[1722084432601,0.00084,68589.0,68588.0,1.330316]
[1722084433874,0.00084,68589.0,68588.0,1.03872]
[1722084435628,0.02372182,68589.0,68588.0,1.03872]
[1722084436411,0.02372182,68589.0,68588.0,0.97472]
[1722084436798,0.02372182,68589.0,68588.0,0.89262]
[1722084437018,0.00084,68589.0,68588.0,0.89262]
[1722084440111,0.02372186,68589.0,68588.0,0.89262]
[1722084446276,0.00084,68589.0,68588.0,0.89262]
[1722084451191,0.00084,68589.0,68588.0,0.86462]
[1722084451399,0.00084,68589.0,68588.0,0.87862]
[1722084451607,0.00084,68589.0,68588.0,0.89262]
[1722084452011,0.00084,68589.0,68588.0,0.87862]
[1722084452214,0.00084,68589.0,68588.0,0.89262]
[1722084452455,0.00084,68589.0,68588.0,0.90662]
[1722084453440,0.02372217,68589.0,68588.0,0.90662]
[1722084456881,0.02372217,68589.0,68588.0,0.98432]
[1722084458251,0.00084,68589.0,68588.0,0.98432]
[1722084461210,0.00084,68589.0,68588.0,1.04682]
[1722084463077,0.02372199,68589.0,68588.0,1.04682]
[1722084464386,0.02372199,68589.0,68588.0,1.630012]
[1722084464616,0.02372199,68589.0,68588.0,1.45956751]
[1722084464817,0.02372199,68589.0,68588.0,1.338416]
[1722084465238,0.02372199,68589.0,68588.0,1.45956995]
[1722084465472,0.02372199,68589.0,68588.0,1.630012]
[1722084465939,0.002,68599.0,68588.0,1.630012]
[1722084465940,0.03212199,68606.0,68604.0,0.145763]
[1722084466096,0.03212199,68606.0,68600.0,0.0777]
[1722084466296,0.03212199,68606.0,68601.0,0.291539]
[1722084466723,0.07412,68607.0,68604.0,0.145762]
[1722084466903,0.07412,68607.0,68601.0,0.291539]
[1722084467157,0.219878,68607.0,68603.0,0.145765]
[1722084467339,0.00822,68607.0,68603.0,0.29153]
[1722084467542,0.00822,68607.0,68604.0,0.145762]
[1722084467894,0.00822,68607.0,68603.0,0.145765]
[1722084468009,0.00822,68607.0,68604.0,0.146763]
[1722084468765,0.00822,68607.0,68604.0,0.148763]
[1722084469005,0.00822,68607.0,68604.0,0.148764]
[1722084469333,0.153977,68607.0,68604.0,0.003]
[1722084469534,0.00822,68607.0,68604.0,0.148763]
[1722084469876,0.153978,68607.0,68604.0,0.003]
[1722084470587,0.00822,68607.0,68605.0,0.145761]
[1722084470880,0.00822,68607.0,68604.0,0.003]
[1722084470881,0.00822,68607.0,68604.0,0.148763]
[1722084471639,0.00822,68607.0,68604.0,0.145763]
[1722084471839,0.00822,68607.0,68605.0,0.002]
[1722084471949,0.00822,68607.0,68605.0,0.001]
[1722084472778,0.153978,68607.0,68605.0,0.001]
[1722084472979,0.00822,68607.0,68605.0,0.003]
[1722084473521,0.00822,68607.0,68605.0,0.002]
[1722084473699,0.153977,68607.0,68605.0,0.002]
[1722084473900,0.03110027,68607.0,68605.0,0.002]
[1722084474099,0.17685827,68607.0,68605.0,0.002]
[1722084474300,0.03110027,68607.0,68605.0,0.002]
[1722084474545,0.17685827,68607.0,68605.0,0.003]
[1722084475227,0.00822,68607.0,68605.0,0.003]
[1722084475858,0.153977,68607.0,68605.0,0.003]
[1722084476063,0.145759,68606.0,68605.0,0.003]
[1722084476292,0.535878,68606.0,68605.0,0.003]
[1722084476455,0.910797,68606.0,68605.0,0.003]
[1722084477063,0.910797,68606.0,68605.0,0.002]
[1722084477351,0.910797,68606.0,68605.0,0.004]
[1722084477555,0.827397,68606.0,68605.0,0.004]
[1722084477681,0.910797,68606.0,68605.0,0.004]
[1722084477888,0.910797,68606.0,68605.0,0.002]
[1722084478086,0.911797,68606.0,68605.0,0.002]
[1722084478484,0.911797,68606.0,68603.0,0.000924]
[1722084478485,0.82742,68604.0,68603.0,0.000924]
[1722084478677,1.118948,68604.0,68603.0,0.000924]
[1722084479478,1.56073557,68604.0,68603.0,0.000924]
[1722084479683,1.6728528,68604.0,68603.0,0.000924]
[1722084479865,1.67385484,68604.0,68603.0,0.000924]
[1722084480067,1.67485484,68604.0,68603.0,0.000924]
[1722084480823,1.68268867,68604.0,68603.0,0.000924]
[1722084481035,1.68368867,68604.0,68603.0,0.001924]
[1722084481399,1.68268867,68604.0,68603.0,0.001924]
[1722084481848,1.68268867,68604.0,68603.0,0.002924]
[1722084481849,1.68768867,68604.0,68603.0,0.002924]
[1722084482048,1.68268867,68604.0,68603.0,0.001924]
[1722084482223,1.88268867,68604.0,68603.0,0.001924]
[1722084482450,1.88268867,68604.0,68603.0,0.002924]
[1722084482451,2.20210166,68604.0,68603.0,0.002924]
[1722084482656,2.20110166,68604.0,68603.0,0.001924]
[1722084482784,2.20110166,68604.0,68603.0,0.002924]
[1722084482785,2.21510166,68604.0,68603.0,0.002924]
[1722084482982,2.20298239,68604.0,68603.0,0.002924]
[1722084483169,2.21510172,68604.0,68603.0,0.002924]
[1722084483374,2.19221673,68604.0,68603.0,0.002924]
[1722084484296,2.19221673,68604.0,68574.0,0.15852979]
[1722084484297,1.312218,68586.0,68575.0,0.07512979]
[1722084484495,1.494218,68586.0,68583.0,0.45170272]
[1722084484790,1.494218,68586.0,68583.0,0.000924]
[1722084485331,1.49676079,68586.0,68583.0,0.000924]
[1722084485479,1.49676079,68586.0,68585.0,0.004924]
[1722084485882,1.64702036,68586.0,68585.0,0.000924]
[1722084486107,1.75102036,68586.0,68585.0,0.000924]
[1722084486512,1.75002036,68586.0,68585.0,0.000924]
[1722084486706,1.77290919,68586.0,68585.0,0.000924]
[1722084486950,1.77690919,68586.0,68585.0,0.000924]
[1722084487355,1.77290919,68586.0,68585.0,0.000924]
[1722084487556,1.78390919,68586.0,68585.0,0.000924]
[1722084488143,1.78090919,68586.0,68585.0,0.000924]
[1722084488698,2.09863522,68586.0,68585.0,0.000924]
[1722084488897,2.08463522,68586.0,68585.0,0.000924]
[1722084489051,2.09363522,68586.0,68585.0,0.000924]
[1722084489574,1.63964962,68586.0,68585.0,0.000924]
[1722084489753,1.65177216,68586.0,68585.0,0.000924]
[1722084490175,1.63964962,68586.0,68585.0,0.000924]
[1722084490561,1.61676079,68586.0,68585.0,0.000924]
[1722084491079,1.6255475,68586.0,68585.0,0.000924]
[1722084492308,1.65487556,68586.0,68585.0,0.000924]
[1722084493712,1.6255475,68586.0,68585.0,0.000924]
[1722084493916,1.64843673,68586.0,68585.0,0.000924]
[1722084494597,1.6255475,68586.0,68585.0,0.000924]
[1722084494809,1.6484367,68586.0,68585.0,0.000924]
[1722084495152,1.6255475,68586.0,68585.0,0.000924]
[1722084497050,1.77580707,68586.0,68585.0,0.000924]
[1722084497389,1.6255475,68586.0,68585.0,0.000924]
[1722084497773,1.6484363,68586.0,68585.0,0.000924]
[1722084499867,1.8484363,68586.0,68585.0,0.000924]
[1722084500080,2.1400403,68586.0,68585.0,0.000924]
[1722084500710,2.1290403,68586.0,68585.0,0.000924]
[1722084500920,2.27929987,68586.0,68585.0,0.000924]
[1722084501133,2.29142264,68586.0,68585.0,0.000924]
[1722084502281,1.635971,68584.0,68583.0,0.000924]
[1722084502483,1.81309377,68584.0,68583.0,0.000924]
[1722084502886,1.800971,68584.0,68583.0,0.000924]
[1722084503215,1.96335375,68584.0,68583.0,0.000924]
[1722084503555,1.97735375,68584.0,68583.0,0.000924]
[1722084503989,1.99135375,68584.0,68583.0,0.000924]
[1722084504308,1.92449418,68584.0,68583.0,0.000924]
[1722084505463,1.440258,68584.0,68583.0,0.000924]
[1722084505686,1.54654825,68584.0,68583.0,0.000924]
[1722084506468,1.17153525,68584.0,68583.0,0.000924]
[1722084506886,1.07153525,68584.0,68583.0,0.000924]
[1722084507093,1.07153525,68584.0,68583.0,0.144224]
[1722084507293,1.048645,68584.0,68583.0,0.144224]
[1722084508336,1.134645,68584.0,68583.0,0.144224]
[1722084508494,1.120645,68584.0,68583.0,0.144224]
[1722084508701,1.126645,68584.0,68583.0,0.144224]
[1722084509112,1.127645,68584.0,68583.0,0.144224]
[1722084509523,1.122645,68584.0,68583.0,0.144224]
[1722084510034,1.125645,68584.0,68583.0,0.144224]
[1722084510737,1.1485328,68584.0,68583.0,0.144224]
[1722084510938,0.4653068,68584.0,68583.0,0.144224]
[1722084511210,0.0278878,68584.0,68583.0,0.144224]
[1722084511339,0.1736938,68584.0,68583.0,0.144224]
[1722084511539,0.0278878,68584.0,68583.0,0.144224]
[1722084511737,0.1736938,68584.0,68583.0,0.144224]
[1722084512913,0.0278878,68584.0,68583.0,0.144224]
[1722084513122,0.0278878,68584.0,68583.0,0.290032]
[1722084513569,0.0278878,68584.0,68583.0,0.581649]
[1722084513782,0.0278878,68584.0,68583.0,0.290032]
[1722084514410,0.005,68584.0,68583.0,0.290032]
[1722084514684,0.145798,68588.0,68583.0,0.146732]
[1722084514845,0.145798,68588.0,68585.0,0.0659]
[1722084515022,0.145798,68588.0,68585.0,0.0649]
[1722084515227,0.145796,68589.0,68585.0,0.145804]
[1722084515488,0.145796,68589.0,68583.0,0.292539]
[1722084515789,0.145796,68589.0,68584.0,0.145806]
[1722084516177,0.013,68588.0,68584.0,0.145806]
[1722084516378,0.152798,68588.0,68584.0,0.145806]
[1722084516792,0.152798,68588.0,68583.0,0.146732]
[1722084517387,0.152798,68588.0,68583.0,9.146732]
[1722084517586,0.007,68588.0,68584.0,0.145805]
[1722084517789,0.007,68589.0,68585.0,0.145803]
[1722084517995,0.291581,68592.0,68588.0,0.0798]
[1722084518335,0.014,68589.0,68588.0,0.517193]
[1722084518667,0.16866915,68593.0,68589.0,0.1457]
[1722084518862,0.16866915,68593.0,68589.0,0.145795]
[1722084519122,0.16866915,68593.0,68591.0,0.1387]
[1722084519123,0.02288115,68593.0,68591.0,0.1387]
[1722084519320,0.02288115,68593.0,68592.0,0.0659]
[1722084519572,0.16866815,68593.0,68592.0,0.0659]
[1722084519740,0.46024215,68593.0,68592.0,0.0659]
[1722084520159,0.16866815,68593.0,68592.0,0.0659]
[1722084520569,0.02288115,68593.0,68592.0,0.0659]
[1722084520798,0.16866815,68593.0,68592.0,0.0659]
[1722084521360,0.19155221,68593.0,68592.0,0.0659]
[1722084521760,0.19155221,68593.0,68592.0,0.0679]
[1722084522194,0.48312621,68593.0,68592.0,0.1507]
[1722084522397,0.46024215,68593.0,68592.0,0.1507]
[1722084522625,0.16866815,68593.0,68592.0,0.1507]
[1722084522835,0.46024215,68593.0,68592.0,0.1507]
[1722084523062,0.75181615,68593.0,68592.0,0.1507]
[1722084523260,0.46024215,68593.0,68592.0,0.1507]
[1722084525623,0.48312626,68593.0,68592.0,0.1507]
[1722084525842,0.46024511,68593.0,68592.0,0.1507]
[1722084526439,0.437361,68593.0,68592.0,0.1507]
[1722084527603,0.728935,68593.0,68592.0,0.1507]
[1722084531695,0.728935,68593.0,68592.0,0.1477]
[1722084531898,0.728935,68593.0,68592.0,0.1457]
[1722084532261,0.728935,68593.0,68592.0,0.1467]
[1722084532467,0.728935,68593.0,68592.0,0.1487]
[1722084534088,0.7518193,68593.0,68592.0,0.1487]
[1722084534330,0.728935,68593.0,68592.0,0.1487]
[1722084536078,0.728935,68593.0,68592.0,0.14835212]
[1722084536466,0.728935,68593.0,68592.0,0.0828]
[1722084536618,1.020509,68593.0,68592.0,0.0828]
[1722084537389,1.04339338,68593.0,68592.0,0.0828]
[1722084538155,0.75181938,68593.0,68592.0,0.0828]
[1722084538740,0.728935,68593.0,68592.0,0.0828]
[1722084539134,0.728935,68593.0,68592.0,0.1466]
[1722084541275,0.729775,68593.0,68592.0,0.1466]
[1722084541600,0.729775,68593.0,68592.0,0.0828]
[1722084541779,0.75265945,68593.0,68592.0,0.0828]
[1722084542301,0.729775,68593.0,68592.0,0.0828]
[1722084546099,0.72963721,68593.0,68592.0,0.0828]
[1722084548661,1.02121121,68593.0,68592.0,0.0828]
[1722084548865,0.72963721,68593.0,68592.0,0.0828]
[1722084549063,1.02121121,68593.0,68592.0,0.003]
[1722084549649,1.02121121,68593.0,68592.0,0.002]
[1722084550455,1.02221121,68593.0,68592.0,0.002]
[1722084551429,0.728947,68592.0,68591.0,0.000924]
[1722084551968,1.020526,68592.0,68591.0,0.000924]
[1722084552904,1.020526,68592.0,68591.0,0.001924]
[1722084554970,1.010526,68592.0,68591.0,0.001924]
[1722084555188,1.114826,68592.0,68591.0,0.001924]
[1722084555318,1.12694553,68592.0,68591.0,0.001924]
[1722084555516,1.42106739,68592.0,68591.0,0.001924]
[1722084556065,1.42106739,68592.0,68591.0,0.000924]
[1722084556441,1.42694786,68592.0,68591.0,0.001924]
[1722084556765,1.43006814,68592.0,68591.0,0.001924]
[1722084557748,1.57785106,68592.0,68591.0,0.001924]
[1722084558160,1.58985106,68592.0,68591.0,0.001924]
[1722084558761,1.43306814,68592.0,68591.0,0.000924]
[1722084558962,1.58085106,68592.0,68591.0,0.000924]
[1722084559175,1.44506814,68592.0,68591.0,0.000924]
[1722084559544,1.59532771,68592.0,68591.0,0.000924]
[1722084559734,1.59532805,68592.0,68591.0,0.000924]
[1722084560384,1.52846848,68592.0,68591.0,0.000924]
[1722084560722,1.48736848,68592.0,68591.0,0.000924]
[1722084561002,1.04918948,68592.0,68591.0,0.000924]
[1722084561143,1.03706886,68592.0,68591.0,0.000924]
[1722084561386,1.1683454,68592.0,68591.0,0.000924]
[1722084561618,1.03706886,68592.0,68591.0,0.000924]
[1722084562222,1.1683454,68592.0,68591.0,0.000924]
[1722084562444,1.17533042,68592.0,68591.0,0.000924]
[1722084563092,1.16321034,68592.0,68591.0,0.000924]
[1722084564073,1.26751034,68592.0,68591.0,0.000924]
[1722084564294,1.10026886,68592.0,68591.0,0.000924]
[1722084564673,1.03706886,68592.0,68591.0,0.000924]
[1722084564877,1.04918881,68592.0,68591.0,0.000924]
[1722084566445,1.32864786,68592.0,68591.0,0.000924]
[1722084566645,1.04918881,68592.0,68591.0,0.000924]
[1722084567045,1.34076781,68592.0,68591.0,0.000924]
[1722084568305,1.48843963,68592.0,68591.0,0.000924]
[1722084568900,1.34076781,68592.0,68591.0,0.000924]
[1722084569932,1.34076828,68592.0,68591.0,0.000924]
[1722084571479,1.48843241,68592.0,68591.0,0.000924]
[1722084572213,1.34076828,68592.0,68591.0,0.000924]
[1722084573126,1.34076843,68592.0,68591.0,0.000924]
[1722084573828,1.41204786,68592.0,68591.0,0.000924]
[1722084574057,1.42416769,68592.0,68591.0,0.000924]
[1722084574997,1.03706886,68592.0,68591.0,0.000924]
[1722084575176,1.13258858,68592.0,68591.0,0.000924]
[1722084575330,1.13258858,68592.0,68591.0,0.078024]
[1722084575521,1.41204786,68592.0,68591.0,0.078024]
[1722084575727,1.54411596,68592.0,68591.0,0.078024]
[1722084575922,1.42246473,68592.0,68591.0,0.078024]
[1722084576164,1.410345,68592.0,68591.0,0.078024]
[1722084576370,1.42246465,68592.0,68591.0,0.078024]
[1722084576572,1.410345,68592.0,68591.0,0.078024]
[1722084576805,1.42246471,68592.0,68591.0,0.078024]
[1722084577571,1.13088571,68592.0,68591.0,0.078024]
[1722084578178,1.42246471,68592.0,68591.0,0.078024]
[1722084579018,1.13088571,68592.0,68591.0,0.078024]
[1722084579221,0.75590671,68592.0,68591.0,0.139724]
[1722084579605,0.452208,68592.0,68591.0,0.139724]
[1722084580891,0.440208,68592.0,68591.0,0.139724]
[1722084581291,0.720787,68592.0,68591.0,0.139724]
[1722084581735,0.722787,68592.0,68591.0,0.139724]
[1722084582119,0.720787,68592.0,68591.0,0.139724]
[1722084582374,0.720787,68592.0,68591.0,0.868681]
[1722084582375,0.00184,68592.0,68591.0,0.868681]
[1722084582553,0.00184,68592.0,68591.0,0.870681]
[1722084582955,0.00184,68592.0,68591.0,0.579098]
[1722084583360,0.02472341,68592.0,68591.0,0.579098]
[1722084584638,0.02472341,68592.0,68591.0,1.23739379]
[1722084584875,0.02472341,68592.0,68591.0,0.96881079]
[1722084585752,0.02472341,68592.0,68591.0,0.96681079]
[1722084586151,0.02572341,68592.0,68591.0,0.893681]
[1722084586954,0.02472341,68592.0,68591.0,0.893681]
[1722084587413,0.02572341,68592.0,68591.0,0.899681]
[1722084591687,0.02572341,68592.0,68591.0,0.608098]
[1722084591892,0.02572341,68592.0,68591.0,0.147724]